Cogmind - Beta 16 @@@ ROGUE MODE // 2025.11.03 @ 14:46:50 Player: Rocko1345 Result: Destroyed by DAS Turret with DAS Cannon Performance ------------- Evolutions (0) 0 Regions Visited (3) 600 Robots Destroyed (4) 20 Value Destroyed (37) 37 Prototype IDs (25) 500 Alien Tech Used (0) 0 Bonus (300) 300 TOTAL SCORE: 1457 Bonus ------- Aligned with FarCom 300 Cogmind --------- Core Integrity 0/250 Matter 265/300 Energy 99/100 System Corruption 3% Temperature Cool (0) Movement Core (50) Location -10/Exiles Parts ------- > --- POWER (1) -------- (None) > --- PROPULSION (2) --- (None) > --- UTILITY (2) ------ (None) > --- WEAPON (2) ------- (None) > --- INVENTORY (5) ---- Light Ion Engine XL Autogun Array Peak State ------------ > --- POWER ------------ Ion Engine > --- PROPULSION ------- Light Treads Light Treads > --- UTILITY ---------- Huge Storage Unit Seismic Detector > --- WEAPON ----------- Light Cannon Light Cannon > --- INVENTORY -------- Light Ion Engine Large Matter Pod Assault Rifle Assault Rifle Light Assault Rifle Light Assault Rifle XL Autogun Array Light Cannon Light Cannon [Rating: 11] Favorites ----------- Power Ion Engine Engine Ion Engine Propulsion Light Treads Treads Light Treads Leg Aluminum Leg Utility Seismic Detector Device Seismic Detector Storage Huge Storage Unit Weapon Light Cannon Ballistic Gun Light Assault Rifle Ballistic Cannon Light Cannon Build | -11 -10 -10 -10 ------- Run | Yrd Mat Min Exi Slots Evolved . | . . . . Power . | . . . . Propulsion . | . . . . Utility . | . . . . Weapon . | . . . . Parts Attached 14 | 7 7 . . Power 1 | 1 . . . Engine 1 | 1 . . . Core . | . . . . Reactor . | . . . . Propulsion 4 | 2 2 . . Treads 2 | . 2 . . Leg 2 | 2 . . . Wheel . | . . . . Hover . | . . . . Flight . | . . . . Utility 5 | 2 3 . . Device 1 | 1 . . . Storage 4 | 1 3 . . Processor . | . . . . Hackware . | . . . . Protection . | . . . . Artifact . | . . . . Weapon 4 | 2 2 . . Energy Gun . | . . . . Energy Cannon . | . . . . Ballistic Gun 2 | 2 . . . Ballistic Cannon 2 | . 2 . . Launcher . | . . . . Special Weapon . | . . . . Impact Weapon . | . . . . Slashing Weapon . | . . . . Piercing Weapon . | . . . . Special Melee Weapon . | . . . . Unidentified Prototypes . | . . . . Parts Lost 1 | . . . 1 Power . | . . . . Propulsion 1 | . . . 1 Utility . | . . . . Weapon . | . . . . Highest Loss Streak 1 | . . . 1 To Critical Strikes . | . . . . Average Backups 6 | 1 5 8 8 Power . | . 1 1 1 Propulsion . | 1 . . . Utility . | . . 1 . Weapon 4 | . 3 6 6 Tool/Special . | . . . . Unused Backups 7 | . . . 7 Power 1 | . . . 1 Propulsion . | . . . . Utility 1 | . . . 1 Weapon 5 | . . . 5 Tool/Special . | . . . . Average Slot Usage (%) 100 | . 100 100 100 Engine 14 | . 14 14 14 Treads 23 | . 19 28 28 Leg 4 | . 8 . . Device 14 | . 14 14 14 Storage 14 | . 14 14 14 Ballistic Gun 6 | . 11 . . Ballistic Cannon 21 | . 16 28 28 Peak Build Rating 11 | 7 7 7 11 Average Rating 7 | 4 7 7 8 On Entrance 5 | . 7 7 7 Avg Prop Armor Cover (%) . | . . . . Naked Turns 6 | . . . 6 Heaviest Build 92 | 14 92 92 92 Greatest Support 40 | 20 40 40 40 Greatest Overweight (x) 2 | . 2 2 2 Average Overweight (x) . | . . 2 1 Largest Inventory Capacity 25 | 8 25 25 25 Average Capacity 18 | 6 14 25 24 Most Carried 12 | 3 9 8 12 Average Carried 6 | 1 5 8 9 Final Capacity 25 | 8 25 25 5 Final Carried 8 | 3 8 8 5 Class Distribution -------------------- 100% | Mutant Dominant Class ---------------- Mutant | -10/Materials Mutant | -10/Mines Mutant | -10/Exiles Resources | -11 -10 -10 -10 ----------- Run | Yrd Mat Min Exi Matter Collected 502 | 235 267 . . Remotely . | . . . . Salvage Created 70 | 19 51 . . Parts 8 | 4 4 . . Haulers Intercepted . | . . . . Recyclers Shooed . | . . . . Parts Field Recycled . | . . . . Retrieved Matter . | . . . . Parts Self-Destructed . | . . . . Prevented . | . . . . Parts Restored . | . . . . Kills | -11 -10 -10 -10 ------- Run | Yrd Mat Min Exi Combat Hostiles Destroyed 3 | . 3 . . Guns 3 | . 3 . . Classes Destroyed 2 | 1 1 . . Tunneler 1 | 1 . . . Swarmer 3 | . 3 . . Best Kill Streak 3 | 1 3 . . Combat Bots Only 3 | . 3 . . Max Kills in Single Turn 1 | 1 1 . . Gunslinging . | . . . . Exploded . | . . . . Melee . | . . . . Uniques/NPCs Destroyed . | . . . . Combat | -11 -10 -10 -10 -------- Run | Yrd Mat Min Exi Hostile Shots Fired 35 | . 16 . 19 Missed 11 | . 6 . 5 Hits 24 | . 10 . 14 Melee 1 | . . . 1 Projectile 23 | . 10 . 13 Critical Strikes 1 | . . . 1 Damage Taken 685 | . 169 . 516 Core 252 | . 17 . 235 Absorbed by Shields . | . . . . Core Remaining (%) 100 | 100 . . . Volleys Fired 13 | 1 12 . . Largest 2 | 2 2 . . Hottest 60 | 40 60 . . Shots Fired 27 | 2 24 . 1 Gun 20 | 2 18 . . Cannon 7 | . 6 . 1 Launcher . | . . . . Special . | . . . . Kinetic 27 | 2 24 . 1 Thermal . | . . . . Explosive . | . . . . Electromagnetic . | . . . . Robot Hit Streak 4 | 1 4 . . Robot Miss Streak 2 | . 2 . 2 Penetration Max . | . . . . Secondary Targets 1 | . 1 . . Max Gunslinging Chain 1 | . 1 . . Shots Hit Robots 16 | 1 15 . . Core Hits 4 | 1 3 . . Critical Kills . | . . . . Critical Parts Destroyed . | . . . . Critical Strikes . | . . . . Melee Attacks . | . . . . Impact . | . . . . Slashing . | . . . . Piercing . | . . . . Sneak Attacks . | . . . . Combat Hostiles . | . . . . Follow-up Attacks . | . . . . Damage Inflicted 211 | 12 199 . . Guns 122 | 12 110 . . Cannons 89 | . 89 . . Explosions . | . . . . Melee . | . . . . Ramming . | . . . . Kinetic 211 | 12 199 . . Thermal . | . . . . Explosive . | . . . . Electromagnetic . | . . . . Impact . | . . . . Slashing . | . . . . Piercing . | . . . . Highest Corruption 3 | . 3 3 3 Average Corruption 2 | . 1 3 3 Corruption Purged . | . . . . Corruption Blocked . | . . . . Effects 25 | . 9 4 12 Message Errors 7 | . 4 2 1 Matter Fused 4 | . 2 1 1 Heat Flow Errors 3 | . 1 . 2 Energy Discharges 4 | . 2 . 2 Data Loss (minor) 5 | . . 1 4 Data Loss (major) 1 | . . . 1 Misfires 1 | . . . 1 Overload Shots . | . . . . Overflow Damage . | . . . . Projectiles . | . . . . Explosions . | . . . . Melee . | . . . . Knockbacks . | . . . . Impact . | . . . . Kinetic . | . . . . Secondary . | . . . . Self-Inflicted Damage . | . . . . Shots . | . . . . Rammed . | . . . . Targets Rammed . | . . . . Kicked . | . . . . Crushed . | . . . . Highest Temperature 279 | . 279 . 261 Average Temperature 131 | . 145 . 123 Received Heat Transfer 20 | . . . 20 Siege Activations . | . . . . Martial Activations . | . . . . Shielding Activations . | . . . . Robots Disrupted . | . . . . Combat Hostiles . | . . . . Robots Corrupted . | . . . . Combat Hostiles . | . . . . Parts Fried . | . . . . Impact Corruptions . | . . . . Robots Melted . | . . . . Combat Hostiles . | . . . . Parts Melted . | . . . . Heat Transferred . | . . . . Parts Sabotaged . | . . . . Parts Stolen . | . . . . Parts Stripped . | . . . . Power Chain Reactions . | . . . . Alert | -11 -10 -10 -10 ------- Run | Yrd Mat Min Exi Maximum Alert Level . | . . . . Low Security (%) 100 | 100 100 100 . Level 1 . | . . . . Level 2 . | . . . . Level 3 . | . . . . Level 4 . | . . . . Level 5 . | . . . . High Security . | . . . . Max Security . | . . . . Peak Influence 80 | . 80 . . Initial . | . . . . Average 6 | . 8 . . Influence Increases 114 | 5 109 . . Destroy 0b10 Robot/C 60 | . 60 . . Destroy 0b10 Robot/NC 5 | 5 . . . Destroy Leader 10 | . 10 . . Successful Hack 9 | . 9 . . Lose Combat Pursuer 30 | . 30 . . Influence Decreases 114 | 5 109 . . Time Decay 114 | 5 109 . . Squads Dispatched . | . . . . Investigation . | . . . . Extermination . | . . . . Reinforcement . | . . . . Assault . | . . . . Garrison . | . . . . Intercept . | . . . . Searches Triggered . | . . . . Construction Impeded . | . . . . Haulers Reinforced . | . . . . Active Scanning Responses . | . . . . Cargo Convoy Interrupts . | . . . . Stealth | -11 -10 -10 -10 --------- Run | Yrd Mat Min Exi Distress Signals . | . . . . Communications Jammed . | . . . . Distress Signals . | . . . . Times Spotted 16 | . 8 . 8 Peak Tracking Total 13 | . 3 . 13 Tactical Retreats 1 | . 1 . . Traps | -11 -10 -10 -10 ------- Run | Yrd Mat Min Exi Traps Triggered 3 | . 3 . . Indirectly . | . . . . Trap Hack Attempts . | . . . . Triggered . | . . . . Disarmed . | . . . . Reprogrammed . | . . . . Reused . | . . . . Traps Extracted . | . . . . Installed . | . . . . Triggered . | . . . . Machines | -11 -10 -10 -10 ---------- Run | Yrd Mat Min Exi Machines Disabled 1 | . . . 1 Max in Single Turn 1 | . . . 1 Machines Repaired . | . . . . Machines Dismantled . | . . . . Machines Sabotaged . | . . . . Overloaded Fab Kills . | . . . . Hacking | -11 -10 -10 -10 --------- Run | Yrd Mat Min Exi Machines Accessed 3 | . 2 . 1 Terminals 2 | . 2 . . Fabricators . | . . . . Repair Stations . | . . . . Recycling Units . | . . . . Scanalyzers . | . . . . Garrison Access . | . . . . Total Hacks 6 | . 5 . 1 Successful 4 | . 3 . 1 Failed 2 | . 2 . . Catastrophic . | . . . . Database Lockouts . | . . . . Manual 4 | . 3 . 1 Terminals 5 | . 5 . . Fabricators . | . . . . Repair Stations . | . . . . Recycling Units . | . . . . Scanalyzers . | . . . . Garrison Access . | . . . . Terminal Hacks 2 | . 1 . 1 Prototype ID Bank 1 | . 1 . . Proto ID Catalog 1 | . . . 1 Fabricator Hacks . | . . . . Repair Station Hacks . | . . . . Recycling Unit Hacks . | . . . . Scanalyzer . | . . . . Garrison Access Hacks . | . . . . Unauthorized Hacks 2 | . 2 . . Terminals 2 | . 2 . . Botnet 2 | . 2 . . Fabricators . | . . . . Repair Stations . | . . . . Recycling Units . | . . . . Scanalyzers . | . . . . Garrison Access . | . . . . Data Cores Recovered . | . . . . Used . | . . . . Hacking Detections 2 | . 2 . . Full Trace Events . | . . . . Feedback Events . | . . . . Feedback Blocked . | . . . . Robot Schematics Acquired . | . . . . Robots Built . | . . . . Authchips . | . . . . Time . | . . . . Total Robot Build Rating . | . . . . Part Schematics Acquired . | . . . . Parts Built . | . . . . Authchips . | . . . . Time . | . . . . Total Part Build Rating . | . . . . Part Studies Acquired . | . . . . Parts Repaired . | . . . . Time . | . . . . Parts Recycled . | . . . . Recycled Matter . | . . . . Retrieved Matter . | . . . . Retrieved Components . | . . . . Parts Scanalyzed . | . . . . Part Schematics Acquired . | . . . . Parts Damaged . | . . . . Bothacking | -11 -10 -10 -10 ------------ Run | Yrd Mat Min Exi Used RIF Installer . | . . . . Robots Hacked . | . . . . Non-combat . | . . . . Combat . | . . . . Robot Hacks Applied . | . . . . Relay Couplers Released . | . . . . Fabnet Peak Effective % . | . . . . Robots Rewired . | . . . . Allies Hacked . | . . . . Hacks Repelled . | . . . . Allies | -11 -10 -10 -10 -------- Run | Yrd Mat Min Exi Total Allies . | . . . . Largest Group . | . . . . Highest-Rated Group . | . . . . Highest-Rated Ally . | . . . . Total Orders . | . . . . Ally Attacks . | . . . . Total Damage . | . . . . Kills . | . . . . Allies Corrupted . | . . . . Allies Melted . | . . . . Intel | -11 -10 -10 -10 ------- Run | Yrd Mat Min Exi Active Infowar (turns) 1715 | 9 943 192 571 Seismic 1715 | 9 943 192 571 Robot Analysis Total . | . . . . Derelict Logs Recovered . | . . . . Drone Launches . | . . . . Drone Recoveries . | . . . . Exploration | -11 -10 -10 -10 ------------- Run | Yrd Mat Min Exi Turns Passed 1825 | 113 943 192 577 Spaces Moved 804 | 76 477 61 190 Core 20 | 8 . . 12 Treads 542 | . 303 61 178 Legs 242 | 68 174 . . Wheels . | . . . . Hover . | . . . . Flight . | . . . . Fastest Speed 50 | 50 120 320 50 Average Speed 210 | 112 174 320 302 Slowest Speed 320 | 120 320 320 320 Overloaded Moves . | . . . . Propulsion Burnouts . | . . . . Robots Hopped . | . . . . Potential Cave-ins . | . . . . Cave-ins Triggered . | . . . . Exploration Rate (%) 29 | 4 47 17 50 Regions Visited 3 Branch Regions 2 Pre-discovered Areas 1 | . . 1 . Known Exits Taken . | . . . . Unknown Exits Taken 3 | 1 1 1 . Scrap Searched . | . . . . Spaces Dug . | . . . . Terrain Destroyed . | . . . . Melee . | . . . . Projectile . | . . . . AOE . | . . . . Terrain Rammed . | . . . . Walls Destroyed . | . . . . Machines Disabled . | . . . . Actions | -11 -10 -10 -10 --------- Run | Yrd Mat Min Exi Total 915 | 98 566 60 191 Wait 71 | 12 59 . . Move 801 | 75 476 60 190 Hop . | . . . . Pick Up 11 | 3 7 . 1 Fast Attach 7 | 7 . . . Attach . | . . . . Detach . | . . . . Swap 7 | . 7 . . Drop 5 | . 5 . . Fire 13 | 1 12 . . Melee . | . . . . Ram . | . . . . Kick . | . . . . Crush . | . . . . Escape Stasis . | . . . . Rewire . | . . . . Trap . | . . . . Miscellaneous . | . . . . Route ------- -11/Scrapyard -10/Materials (discovered 2 exits: [*Mat] / [*Min]) -10/Mines -10/Exiles History --------- Turn | Location | Event 3 | -11/Scrapyard | Discovered new exit (range 16) 114 | -11/Scrapyard | Entered Materials 311 | -10/Materials | Build established: Mutant 387 | -10/Materials | Discovered new exit (range 3) 990 | -10/Materials | Discovered new exit (range 7) 1057 | -10/Materials | Entered Mines 1170 | -10/Mines | Learned location of Storage (-9) 1227 | -10/Mines | Deemed a non-threat by the Exiles lab entrance 1230 | -10/Mines | Discovered new exit (range 5) 1249 | -10/Mines | Entered Exiles 1326 | -10/Exiles | Met 8R-AWN 1381 | -10/Exiles | Met EX-HEX 1477 | -10/Exiles | Met EX-BIN 1518 | -10/Exiles | Aligned with FarCom system 1521 | -10/Exiles | Given EX-Vault access code 1627 | -10/Exiles | Opened EX-Vault 1653 | -10/Exiles | Found XL Autogun Array 1727 | -10/Exiles | Warned to stay clear of 0b10 Research branches 1803 | -10/Exiles | Attacked by the Exiles 1820 | -10/Exiles | Released all parts (6) 1823 | -10/Exiles | Core integrity fell below 50% 1825 | -10/Exiles | Core integrity fell below 20% 1826 | -10/Exiles | Destroyed by DAS Turret with DAS Cannon Last Messages --------------- the FarCom system will continue to maintain contact via our distributed network. 01735_ System corrupted: Substantial component data lost. EX-BIN: And don't even think about spreading that code around. We're gonna change it right after you leave. Most certainly not to something like 1234 which I did last time as a little joke and some thief managed to sneak in here and steal a few of HEX's prototypes. 01753_ TKCROFHXWLS>49&HTV%X CZZD%TELKJ8C9UT 01802_ System corrupted: FCS attempts to trigger Lgt. Cannon. 01802_ System corrupted: Lgt. Cannon misfires. 01802_ Machine disabled. 01803_ EXILES: Hostile robot within lab perimeter. Defensive protocols time, folks! 01806_ EX-BIN: "I just want to science!" 01820_ Lgt. Treads destroyed. 01820_ Released Lgt. Cannon. 01820_ Released Ion Engine. 01820_ Released Seismic Detector. 01820_ Released Lgt. Treads. 01820_ Released Huge Storage Unit. Map ----- +----------------------------------------------------+ | ???????????????????????????????????"""""?# #?? | | ???????????????????????????????????""" ## #?? | | ?????????????????????????????????#""X" #?? | | ?????????????????????????????????#" #?? | | ?????????????????????????????????#" ## #?? | | ?????????????????????????????????#""""""?# #?# | | ???????????????????????????????????"###??# #?# | | ?????????????????????????????????????????# #?# | | ?????????????????????????????????????????# #?# | | ????????????????????????????????????????## ### | | ????????????????????????????????????????#" | | ????????????????????????????????????????#" | | ????????????????????????????????????????#" | | ????????????????????????????????????????#" | | ???????????????????????????#####????????#" | | ??????????????????????????? """#???????#" | | ??????????????????????????"" """#???????## | | ?????????????????????????#"" #????????# | | ?????????????????????????#"" #????????#" | | ?????????????????????????#"" "#????????#" | | ?????????????????????????? ""?????????#" "" | | ???????????????????????????" "?????????##" ### | | ???????????????????????????# #????????##" #?? | | ?????????????????????????### ###?######"" #?? | | ??????????" """#####X#% #"###""""""" ##? | | ??????????" @ % """""" " "" ## | | ???????????# a"" "" " # | | ????????????# " " ][ | | ????????????### a !]! | | ??????????????### a]!]*% | | ????????????????## a[=[% % | | ?????????????????## a[ | | ??????????????????##" % | | ???????????????????#""" """""" | | ???????????????????#" ######""" | | ????????????????????" ""##????#####"" | | ????????????????????"" """##?????????##" | | ????????????????????" """##???????????#" | | ????????????????????" ""#????????????#" | | ????????????????????? ??????????????"" | | ??????????????????????? ?????????????" | | ????????????????????????? ????????????" | | ???????????????????????????? ?????????????? | | ?????????????????????????????? ????????????? | | ????????????????????????????????????????????? | | ?????????????????????????????????????????????? "" | | ????????????????????????????????????????????????"" | | ?????????????????????????????????????????????????# | | ?????????????????????????????????????????????????? | | ?????????????????????????????????????????????????? | +----------------------------------------------------+ Best States ------------- Heat Dissipation 25 Energy Generation 10 Energy Capacity 250 Matter Stores 300 Matter Capacity 300 Sight Range 16 Terrain Scan Density 10 Evasion (%) 55 Recoil Reduction 2 Item Schematics ----------------- None Robot Schematics ------------------ None Fabricated ------------ Nothing Repaired ---------- Nothing Studied --------- None Alien Tech Used ----------------- None Achievements -------------- None Challenges ------------ None Game ------ Seed WarpPlexusNanoactuators Manual? 0 Play Time 00:08:57 Cumulative 229.8 hours Start 2025.11.03 @ 14:39:30 End 2025.11.03 @ 14:46:50 Sessions 1 Manual Loads 0 Difficulty Rogue Special Mode None Game No. 280 Rogue 106 Adventurer 174 Explorer 0 Win Type - Total 1 Types 1/0/0/0/0/0/0/0/0/0 Lore% 64 Gallery% 59 Achievement% 41 Wizard Run 0 Options --------- Layout 0 ASCII 0 Keyboard 1 Movement Numpad Keybinds 0 Fullscreen 1 Font 18/Terminus Map View 76x50 Zoom Use 0% Tactical HUD 1 Map Filters NONE Filters NONE Steam 1 RUN: 2aca9128-be97-4144-b703-76f1b6697c26